{"text_format":"3","workbook":"xlsx","n_sheets":13,"sheets":["Start","Grundlagen","Einführung in Funktionen","MITTELWERT","MIN und MAX","Datum und Uhrzeit","Verknüpfen von Text und Zahlen","WENN-Anweisungen","SVERWEIS","Bedingte Funktionen","Funktions-Assistent","Formelfehler","Weitere Informationen"],"not_rendered":{"images":33,"defined_names":21},"read":"whole","date_system":"1900"}

{"sheet":"Start","index":0,"n_rows":4,"n_cols":1,"rows_kept":4}
[]
["Erste Schritte mit Formeln"]
["In nur ein paar Schritten erstellen Sie Formeln und Funktionen in Excel, der \nleistungsstärksten Tabellenkalkulationsanwendung weltweit."]
["Sie gelangen wieder zum Anfang, wenn Sie STRG+POS1 drücken. Zum Starten der Tour drücken Sie STRG+NACH-UNTEN-TASTE."]

{"sheet":"Grundlagen","index":1,"n_rows":43,"n_cols":10,"rows_kept":43}
["Grundlagen: Mathematik in Excel"]
["Sie können in Excel addieren, subtrahieren, multiplizieren und dividieren, ohne integrierte Funktionen zu verwenden. Sie benötigen lediglich die grundlegenden Operatoren +, -, *, /. Alle Formeln beginnen mit einem Gleichheitszeichen (=).\n",null,"Zu verwendende Zahlen:",null,"Operation:","Formeln:","Antworten:"]
["Wählen Sie zum Addieren Zelle F3 aus, geben Sie \"=C3+C4\" ein, und drücken Sie dann die EINGABE. \n",null,1,null,"Addition (+) ",null,{"$f":"C3+C4","v":3}]
["Wählen Sie zum Subtrahieren Zelle F4 aus, geben Sie \"=C3-C4\" ein, und drücken Sie dann die EINGABE. ",null,2,null,"Subtraktion (-) ",null,{"$f":"C3-C4","v":-1}]
["Wählen Sie zum Multiplizieren Zelle F5 aus, geben Sie \"=C3*C4\" ein, und drücken Sie dann die EINGABE.\n",{"$nulls":3},"Multiplikation (*) ",null,{"$f":"C3*C4","v":2}]
["Wählen Sie zum Dividieren Zelle F6 aus, geben Sie \"=C3/C4\" ein, und drücken Sie dann die EINGABE.\n",{"$nulls":3},"Division (/) ",null,{"$f":"C3/C4","v":0.5}]
["Sehen Sie sich das an: Ändern Sie die Zahlen in den Zellen C3 und C4, und beobachten Sie, wie sich die Formelergebnisse automatisch ändern.",{"$nulls":3},"Potenzierung (^) ",null,{"$f":"C3^C4","v":1}]
["BONUSAUFGABE: Sie können einen Wert potenzieren, indem Sie das Zirkumflexzeichen (^) verwenden, wie in \"=A1^A2\". Sie finden es auf deutschen Tastaturen ganz links unter der ESC-Taste. Geben Sie in Zelle F7 \"=C3^C4\" ein."]
["Tiefer einsteigen und mehr Details erfahren"]
["Nächster Schritt"]
["Weitere Informationen zu Formeln, Zellen und Bereichen"]
["Excel setzt sich aus einzelnen Zellen zusammen, die in Zeilen und Spalten gruppiert sind. Zeilen sind nummeriert, und Spalten werden mit Buchstaben bezeichnet. Es gibt mehr als 1 Million Zeilen und 16.000 Spalten, und Sie können in jede von Ihnen Formeln eingeben. \n"]
["Formeln können Zellbezüge, Bereiche von Zellbezügen, Operatoren und Konstanten enthalten. Alle folgenden Beispiele zeigen Formeln:\n\n=A1+B1\n=10+20\n=SUMME(A1:A10)\n\n"]
["Ihnen wird aufgefallen sein, dass wir im dritten Beispiel oben die Funktion SUMME verwendet haben. Eine Funktion ist ein fertig konfigurierter Befehl, der einen Wert oder Werte annimmt, sie in einer bestimmten Weise berechnet und ein Ergebnis zurückgibt. Beispielsweise nimmt die Funktion SUMME die von Ihnen angegebenen Zellbezüge oder Bereiche an und addiert sie. In diesem Beispiel nimmt sie die Zellen A1 bis A10 an und addiert sie. Excel verfügt über mehr als 400 Funktionen, die Sie auf der Registerkarte \"Formeln\" erkunden können.\n"]
["Formeln mit Funktionen beginnen mit einem Gleichheitszeichen, anschließend folgt der Funktionsname mit seinen Argumenten (den Werten, die eine Funktion für die Berechnung verwendet), die in Klammern eingeschlossen sind. \n"]
["Sie bestätigen eine Formel durch Drücken der EINGABE. Sobald Sie das tun, wird die Formel berechnet, und das Ergebnis wird in der Zelle angezeigt. Um die eigentliche Formel anzuzeigen, können Sie einen Blick auf die Bearbeitungsleiste unterhalb des Menübands werfen oder F2 drücken, um in den Bearbeitungsmodus zu wechseln, in dem die Formel in der Zelle angezeigt wird. Drücken Sie erneut die EINGABE, um die Formel abzuschließen und das Ergebnis zu berechnen.\n\n"]
["Einige Erläuterungen zu Formeln"]
["\"=10+20\" ist eine Formel, in der \"10\" und \"20\" Konstanten darstellen und das \"+\"-Zeichen den Operator bildet."]
["\"=SUMME(A1:A10)\" ist eine Formel, in der SUMME den Funktionsnamen darstellt, die öffnende und schließende Klammer die Formelargumente einschließen und \"A1:A10\" den Zellbereich für die Funktion bildet."]
["\"=SUMME(A1:A10;C1:C10)\" ist eine Formel, in der SUMME den Funktionsnamen darstellt, die öffnende und schließende Klammer die Formelargumente einschließen und \"A1:A10;C1:C10\" die durch ein Semikolon getrennten Zellbereiche für die Funktion bilden."]
["WISSENSWERTES: Konstanten sind Werte, die Sie in Zellen oder Formeln eingeben. Zwar mag die Berechnung von \"=10+20\" den gleichen Wert ergeben wie \"=A1+B1\", trotzdem sind Konstanten praktisch keine gute Wahl. Warum? Weil sich die Konstante nicht ohne weiteres erkennen lässt, ohne die Zelle auszuwählen und danach zu suchen. Das kann spätere Änderungen schwierig machen. Es ist viel einfacher, Ihre Konstanten in Zellen einzusetzen, wo sie sich leicht anpassen lassen, und in Ihren Formeln darauf Bezug zu nehmen.\n\nBeispiel: Wählen Sie die gelbe Zelle unten mit der 12 aus. Sie sehen, dass wir die SUMME-Funktion in Verbindung mit einem Zellbereich verwendet haben. Wir haben nicht \"4\" oder \"8\" direkt in die Formel eingegeben. \n"]
["Zurück"]
["Weiter"]
["Weitere Informationen im Web"]
["Verwenden von Excel als Taschenrechner"]
["Übersicht über Formeln in Excel"]
["Excel-Funktionen (nach Kategorie) "]
["Excel-Funktionen (alphabetisch) "]
["Kostenlose Excel-Schulung online"]
{"$rows_empty":10}
[{"$nulls":9},"Werte"]
[{"$nulls":9},4]
[{"$nulls":9},8]
[{"$nulls":9},{"$f":"SUM(J41:J42)","v":12}]

{"sheet":"Einführung in Funktionen","index":2,"n_rows":51,"n_cols":7,"rows_kept":51}
["Einführung in Funktionen"]
["Mit Funktionen können Sie eine Vielzahl von Dingen ausführen, etwa mathematische Operationen ausführen, Werte nachschlagen oder sogar Datums- und Uhrzeitwerte berechnen. Probieren wir ein paar Möglichkeiten aus, Werte mit der Funktion SUMME zu addieren.",null,"Obst","Betrag",null,"Fleischwaren","Betrag"]
["Geben Sie unter der Mengenspalte für Obst (Zelle D7) \"=SUMME(D3:D6)\" ein, oder tippen Sie \"=SUMME(\", wählen Sie den angegebenen Bereich dann mit der Maus aus, und drücken Sie die EINGABE. Dadurch werden die Werte in den Zellen D3, D4, D5 und D6 addiert. Sie sollten die Antwort 170 erhalten.\n",null,"Äpfel",50,null,"Rindfleisch",50]
["Nun versuchen wir es mit \"AutoSumme\". Wählen Sie die Zelle unter der Spalte für Fleischwaren (Zelle G7) aus, gehen Sie dann zu \"Formeln\" > \"AutoSumme\" > wählen Sie SUMME aus. Sie können sehen, dass Excel die Formel automatisch für Sie eingibt. Drücken Sie die EINGABE, um sie zu bestätigen. Das Feature \"AutoSumme\" weist alle der besonders häufigen Funktionen auf.\n",null,"Orangen",20,null,"Huhn",30]
["Hier ist eine praktische Tastenkombination. Wählen Sie Zelle D15 aus, und drücken Sie dann \"Alt =\" und dann die EINGABE. Dadurch wird automatisch SUMME für Sie eingegeben.",null,"Bananen",60,null,"Schwein",10]
["Tiefer einsteigen und mehr Details erfahren",null,"Zitronen",40,null,"Fisch",50]
["BONUSAUFGABE\nProbieren Sie die Funktion ANZAHL mit allen Methoden aus, die Sie bereits ausprobiert haben. Die Funktion ANZAHL zählt die Anzahl der Zellen in einem Bereich, der Zahlen enthält.",null,"SUMME > ",{"$f":"SUM(D3:D6)","v":170},null,"SUMME > "]
["Nächster Schritt"]
["Weitere Informationen zu Funktionen",null,"Artikel","Betrag",null,"Artikel","Betrag"]
["Gehen Sie zur Registerkarte \"Formeln\", und blättern Sie in der Funktionsbibliothek, in der Funktionen nach Kategorie aufgelistet sind, wie \"Text\", \"Datum und Uhrzeit\" usw. Mithilfe von \"Funktion einfügen\" können Sie anhand des Namens nach Funktionen suchen und einen Funktions-Assistenten starten, der Sie beim Erstellen Ihrer Formel unterstützt. \n\nWenn Sie nach dem Drücken von \"=\" mit der Eingabe eines Funktionsnamens beginnen, startet Excel Intellisense, das alle Funktionen auflistet, die mit den von Ihnen eingegebenen Buchstaben beginnen. Wenn Sie die gewünschte Funktion gefunden haben, drücken Sie die TAB-Taste, dann vervollständigt Excel automatisch den Funktionsnamen und gibt die öffnende Klammer für Sie ein. Es zeigt außerdem die optionalen und die erforderlichen Argumente an. \n\n\n\nSehen wir uns die Anatomie einiger Funktionen mal etwas genauer an. Die SUMME-Funktion ist wie folgt strukturiert:",null,"Brot",50,null,"Brot",50]
["Die Funktion SUMME würde ihre Arbeit wohl so beschreiben: \"Gib die Summe aller Werte in den Zellen D35 bis D38 und die gesamte Spalte H zurück\". SUMME ist der Funktionsname, \"D35:D38\" ist das erste Bereichsargument, das nahezu immer erforderlich ist, und \"H:H\" ist das zweite Bereichsargument, durch ein Semikolon getrennt. Probieren wir eine Funktion aus, die gar keine Argumente benötigt.\n",null,"Donuts",100,null,"Donuts",100]
["Die Funktion HEUTE gibt das Datum von heute zurück. Sie wird automatisch aktualisiert, wenn Excel eine Neuberechnung ausführt.",null,"Kekse",40,null,"Kekse",40]
["SEHEN SIE SICH DAS AN\nWählen Sie diese Zellen aus. Suchen Sie anschließend in der unteren rechten Ecke des Excel-Fensters nach SUMME: 170 in der Leiste am unteren Rand. Sie heißt Statusleiste und stellt eine weitere Möglichkeit dar, schnell eine Summe und andere Details über eine ausgewählte Zelle oder einen ausgewählten Bereich zu ermitteln. ",null,"Kuchen",50,null,"Kuchen",50]
["WICHTIGES DETAIL\nDoppelklicken Sie auf diese Zelle. Ihnen wird die 100 gegen Ende aufgefallen sein. Es ist zwar möglich, Zahlen in dieser Weise in eine Formel einzusetzen, wir empfehlen es aber nur, wenn es absolut erforderlich ist. Eine solche Zahl wird als Konstante bezeichnet, und nur zu leicht vergisst man, dass sie da ist. Wir empfehlen, stattdessen auf eine weitere Zelle zu verweisen, z.B. Zelle F51. Auf diese Weise ist die Konstante sichtbar und nicht im Innern einer Formel verborgen. ",null,"Torten",20,null,"Torten",20]
["Weitere Informationen im Web",null,"SUMME > ",null,null,"ANZAHL >"]
["Alles über die SUMME-Funktion"]
["Verwenden von \"AutoSumme\" zum Addieren von Zahlen"]
["Alles über die ANZAHL-Funktion"]
["Kostenlose Excel-Schulung online"]
["Zurück zum Anfang"]
["Nächster Schritt"]
{"$rows_empty":12}
[null,null,"Obst","Betrag"]
[null,null,"Äpfel",50]
[null,null,"Orangen",20]
[null,null,"Bananen",60]
[null,null,"Zitronen",40]
[null,null,"SUMME > ",{"$f":"SUM(D35:D38)","v":170}]
[]
[]
[]
[]
[null,null,"Artikel","Betrag"]
[null,null,"PKW",20]
[null,null,"LKW",10]
[null,null,"Fahrräder",10]
[null,null,"Rollschuhe",40]
[]
[{"$nulls":3},"Summe:",null,"Zusätzlicher Wert","Neue Summe"]
[{"$nulls":3},{"$f":"SUM(D45:D48,100)","v":180},null,100,{"$f":"SUM(D45:D48,F51)","v":180}]

{"sheet":"MITTELWERT","index":3,"n_rows":15,"n_cols":7,"rows_kept":15}
["MITTELWERT-Funktion"]
["Verwenden Sie die MITTELWERT-Funktion, um den Mittelwert von Zahlen in einem Zellbereich zu ermitteln.",null,"Obst","Betrag",null,"Fleischwaren","Betrag"]
["Wählen Sie Zelle D7 aus, und verwenden Sie dann AutoSumme, um eine MITTELWERT-Funktion hinzuzufügen.",null,"Äpfel",50,null,"Rindfleisch",50]
["Wählen Sie jetzt Zelle G7 aus, und geben Sie eine MITTELWERT-Funktion ein, indem Sie =MITTELWERT(G3:G6) tippen. ",null,"Orangen",20,null,"Huhn",30]
["In Zelle D15 können Sie entweder AutoSumme verwenden oder tippen, um eine weitere MITTELWERT-Funktion einzugeben. ",null,"Bananen",60,null,"Schwein",10]
["SEHEN SIE SICH DAS AN\nWählen Sie einen beliebigen Zahlenbereich aus, und schauen Sie in die Statusleiste, um sofort einen Mittelwert zu sehen.\n",null,"Zitronen",40,null,"Fisch",50]
["Vorheriges Blatt aktivieren",null,"MITTELWERT >",null,null,"MITTELWERT >"]
["Zum nächsten Blatt wechseln"]
["BONUSAUFGABE\nVersuchen Sie, hier MEDIAN oder MODUS zu verwenden. \n\nMit MEDIAN erhalten Sie den Wert in der Mitte der Datengruppe, während \nMODUS den Wert zurückgibt, der am häufigsten auftritt.\n",null,"Artikel","Betrag",null,"Artikel","Betrag"]
["Links zu weiteren Informationen im Web",null,"Brot",50,null,"Brot",50]
["Auswählen, um alles über die MITTELWERT-Funktion aus dem Web zu erfahren",null,"Donuts",100,null,"Donuts",100]
["Auswählen, um alles über die MEDIAN-Funktion aus dem Web zu erfahren",null,"Kekse",40,null,"Kekse",40]
["Auswählen, um alles über die MODUS-Funktion aus dem Web zu erfahren",null,"Kuchen",50,null,"Kuchen",50]
["Auswählen, um Informationen über kostenlose Excel-Schulungen im Web anzuzeigen",null,"Torten",20,null,"Torten",20]
[null,null,"MITTELWERT >"]

{"sheet":"MIN und MAX","index":4,"n_rows":15,"n_cols":7,"rows_kept":15}
["Funktionen MIN und MAX"]
["Verwenden Sie die MIN-Funktion, um die Minimalzahl in einem Zellbereich abzurufen.",null,"Obst","Betrag",null,"Fleischwaren","Betrag"]
["Verwenden Sie die MAX-Funktion, um die Maximalzahl in einem Zellbereich abzurufen.",null,"Äpfel",50,null,"Rindfleisch",50]
["Wählen Sie Zelle D7 aus, und verwenden Sie dann den AutoSumme-Assistenten, um eine MIN-Funktion hinzuzufügen.\n",null,"Orangen",20,null,"Huhn",30]
["Wählen Sie jetzt Zelle G7 aus, und geben Sie eine MAX-Funktion ein, indem Sie \"=MAX(G3:G6)\" eingeben.\n",null,"Bananen",60,null,"Schwein",10]
["In Zelle D15 können Sie entweder den AutoSumme-Assistenten verwenden oder tippen, um eine MIN- oder MAX-Funktion einzugeben. \n",null,"Zitronen",40,null,"Fisch",50]
["Weitere Informationen im Web\n",null,"MIN >",null,null,"MAX >"]
["Alles über die MIN-Funktion"]
["Alles über die MAX-Funktion",null,"Artikel","Betrag",null,"Artikel","Betrag"]
["Kostenlose Excel-Schulung online",null,"Brot",50,null,"Brot",50]
["WISSENSWERTES\nSowohl MIN als auch MAX können mit mehreren Bereichen oder Werten verwendet werden, um den größten oder kleinsten dieser Werte anzuzeigen, etwa in \"=MIN(A1:A10;B1:B10)\" oder \"=MAX(A1:A10;B1)\", wobei B1 hier einen Schwellenwert enthält, z.B. 10, der bewirkt, dass die Formel unter keinen Umständen ein Ergebnis kleiner als 10 zurückgibt.\n",null,"Donuts",100,null,"Donuts",100]
[null,null,"Kekse",40,null,"Kekse",40]
[null,null,"Kuchen",50,null,"Kuchen",50]
[null,null,"Torten",20,null,"Torten",20]
[null,null,"MIN oder MAX >",{"$nulls":3},{"$f":"MIN(G10:G14,10)","v":10}]

{"sheet":"Datum und Uhrzeit","index":5,"n_rows":47,"n_cols":6,"rows_kept":47,"merged":[[4,2,4,3],[26,2,26,3],[30,2,30,3],[44,2,44,3]]}
["Datumsfunktionen"]
["Excel kann Ihnen auf der Grundlage der Ländereinstellungen Ihres Computers das aktuelle Datum ausgeben. Datumswerte können außerdem addiert und subtrahiert werden."]
["Sehen Sie sich die Funktion HEUTE an, die das aktuelle Datum zurückgibt. Dies sind Livefunktionen, auch als volatile Funktionen bezeichnet – wenn Sie Ihre Arbeitsmappe morgen öffnen, hat sie das Datum von morgen. Geben Sie in Zelle D6 \"=HEUTE()\" ein. \n"]
["Subtrahieren von Datumswerten – Geben Sie Ihren nächsten Geburtstag im Format TT.MM.JJ in Zelle D7 ein, und sehen Sie zu, während Excel Ihnen anzeigt, wie viele Tage noch verbleiben, indem Sie in Zelle D8 \"=D7-D6\" verwenden.\n"]
["Addieren von Datumswerten – Nehmen wir an, Sie möchten wissen, an welchem Datum eine Rechnung fällig ist oder wann Sie ein Buch in die Bücherei zurückbringen müssen. Sie können Tage zu einem Datum addieren, um das herauszufinden. Geben Sie in Zelle D10 eine zufällige Anzahl Tage ein. In Zelle D11 hatten wir \"=D6+D10\" addiert, um das Fälligkeitsdatum ab heute zu berechnen.\n",null,"Datumsfunktionen"]
["WISSENSWERTES\nExcel speichert Datumswerte und Uhrzeiten auf der Basis der Anzahl der Tage seit dem 1. Januar 1900. Uhrzeiten werden als Bruchteile eines Tages auf Minutenbasis gespeichert. Daher wird der 01.01.2017, 12:30 h tatsächlich als 42736,5208 gespeichert. Wenn die Uhrzeit oder das Datum in dieser Weise als Zahl angezeigt wird, drücken Sie STRG+1 > Zahl > ein Datums- oder Uhrzeitformat auswählen. ",null,"Heutiges Datum:",null,null,{"$f":"IF(D6=TODAY(),\"Auf den Punkt!\",\"\")","v":""}]
["WICHTIGES DETAIL\nWenn Sie nicht möchten, dass Excel eine negative Zahl anzeigt, weil Sie Ihren Geburtstag noch nicht eingetragen haben, können Sie eine WENN-Funktion in folgender Weise einsetzen: =WENN(D7=\"\";\"\";D7-D6), was bedeutet: \"WENN D7 keinen Wert hat, dann zeige keinen Wert an, andernfalls zeige D7 minus D6 an\".\n",null,"Ihr Geburtstag"]
["Uhrzeitfunktionen",null,"Tage bis zu Ihrem Geburtstag:",{"$f":"D7-D6","v":0}]
["Excel kann Ihnen auf der Grundlage der Ländereinstellungen Ihres Computers die aktuelle Uhrzeit ausgeben. Uhrzeitwerte können außerdem addiert und subtrahiert werden. Vielleicht müssen Sie beispielsweise nachverfolgen, wie viele Stunden ein Mitarbeiter in jeder Woche gearbeitet hat, und seinen Lohn und die Überstunden berechnen.\n"]
["Geben Sie in Zelle D28 \"=JETZT()\" ein, wodurch Sie die aktuelle Uhrzeit erhalten. Der Wert wird bei jeder Ausführung einer Berechnung von Excel aktualisiert. Wenn Sie das Uhrzeitformat ändern müssen, können Sie zu STRG+1 wechseln > \"Zahlen\" > \"Uhrzeit\" > Wählen Sie das gewünschte Format aus.\n",null,"Tage für Nachfrist:"]
["Addieren von Stunden bei Uhrzeitwerten – In Zelle D36 haben wir \"=((D35-D32)-(D34-D33))*24\" eingegeben, wodurch die Anfangs- und Endzeiten eines Mitarbeiters berechnet werden. Anschließend wird die Zeit für die Mittagspause subtrahiert. Die \"*24\" am Ende der Formel konvertiert den Bruchteil des Tages, mit dem Excel arbeitet, in Stunden. Die Zelle muss jedoch als Zahl formatiert werden. Wechseln Sie zu diesem Zweck zu Start > Zellen formatieren (STRG+1) > Zahlen > Zahl > 2 Dezimalstellen.\n\n",null,"Rechnung fällig am:",{"$f":"D6+D10","v":"00:00:00"}]
["Diese Formel würde sich selbst so erklären: \"Nimm die Ausstempelzeit und subtrahiere sie von der Einstempelzeit, dann subtrahiere die Zeiten für die Mittagspause, dann multipliziere alles mit 24, um die Bruchzahldarstellung von Excel in Stunden zu konvertieren\", oder =((Ausstempelzeit - Einstempelzeit)-(Ende Mittagspause - Anfang Mittagspause))*24."]
["Zurück"]
["Weiter"]
["Weitere Informationen im Web"]
["Alles über die HEUTE-Funktion"]
["Alles über die JETZT-Funktion"]
["Alles über die DATUM-Funktion"]
["Kostenlose Excel-Schulung online"]
{"$rows_empty":7}
[null,null,"Uhrzeitfunktionen"]
[null,null,"Aktuelle Uhrzeit:"]
[]
[]
[null,null,"Arbeitsstunden gesamt"]
[null,null,"Einstempelzeit:","08:00:00"]
[null,null,"Anfang Mittagspause:","12:00:00"]
[null,null,"Ende Mittagspause:","13:00:00"]
[null,null,"Ausstempelzeit:","17:00:00"]
[null,null,"Stunden gesamt:",{"$f":"((D35-D32)-(D34-D33))*24","v":8.000000000000002}]
{"$rows_empty":8}
[null,null,"Datum und Uhrzeit (statisch)"]
[null,null,"Datum:","2017-09-27"]
[null,null,"Uhrzeit:","08:52:00"]

{"sheet":"Verknüpfen von Text und Zahlen","index":6,"n_rows":37,"n_cols":6,"rows_kept":37,"merged":[[26,2,26,3],[30,2,30,3],[34,2,34,3]]}
["Verknüpfen von Text aus verschiedenen Zellen"]
["Es gibt viele Situationen in Excel, in denen Sie Text, der sich in verschiedenen Zellen befindet, verknüpfen möchten. Das ist ein sehr häufiges Beispiel, bei dem Sie über Vor- und Nachnamen verfügen und sie als Vorname und Nachname zum vollständigen Namen kombinieren möchten. Glücklicherweise ermöglicht Excel das mithilfe des kaufmännischen Und-Zeichens (&), das Sie mit UMSCHALT+6 eingeben können.\n",null,"Vorname","Nachname","Nachname, Vorname","Vollständiger Name"]
["Geben Sie in Zelle E3 \"=D3&C3\" ein, um die Vor- und Nachnamen zu verknüpfen. \n",null,"Carla","Kobusch",{"$f":"D3&\", \"&C3","v":"Kobusch, Carla"},{"$f":"C3&\" \"&D3","v":"Carla Kobusch"}]
["\"KobuschCarla\" sieht allerdings nicht ganz richtig aus. Wir müssen ein Komma und ein Leerzeichen hinzufügen. Wir verwenden dazu Anführungszeichen, um eine neue Textzeichenfolge zu erstellen. Geben Sie diesmal \"=D3&\", \"&C3\" ein. Der Teil \"&\", \"&\" erlaubt es uns, ein Komma und ein Leerzeichen mit dem Text in den Zellen zu verknüpfen.\n",null,"Kasper","Graf"]
["Um den vollständigen Namen zu erstellen, verknüpfen wir Vor- und Nachnamen und verwenden ein Leerzeichen, aber ohne Komma. Geben Sie in F3 \"=C3&\" \"&D3\" ein.\n",null,"Jan","Sachweh"]
["Tiefer einsteigen und mehr Details erfahren",null,"Marie","Krause"]
["Weiter",null,"Maximilian","Tropschuh"]
["Gemeinsame Verwendung von Text und Zahlen",null,"Christoph","Werner"]
["Jetzt werden wir das \"&\" verwenden, um Text mit Zahlen zu verknüpfen, nicht nur Text mit Text\n\nSehen Sie sich die Zellen C28:D29 an. Sehen Sie, dass sich Datum und Uhrzeit in separaten Zellen befinden? Sie können sie mit dem \"&\"-Symbol verknüpfen, wie das in den Zellen C32:C33 dargestellt ist, aber das Ergebnis sieht nicht richtig aus, oder? Unglücklicherweise weiß Excel nicht, wie Sie die Zahlen formatieren möchten, daher bricht es sie auf ihr grundlegendstes Format herunter, in diesem Fall das serielle Datum. Wir müssen Excel explizit mitteilen, wie der Zahlenteil der Formel formatiert werden soll, damit er in der resultierenden Textzeichenfolge in der gewünschten Weise angezeigt wird. Sie können das mit der Funktion TEXT und einem Formatcode erreichen.",null,"Lorenz","Otto"]
["Geben Sie in Zelle C36 \"=C28&\" \"&TEXT(D28;\"TT.MM.JJJJ\")\" ein. TT.MM.JJJJ ist der in Deutschland gültige Formatcode für Tag.Monat.Jahr, z.B. 25.09.2017.\n",null,"Giselle","Faber"]
["Geben Sie in Zelle C37 \"=C29&\" \"&TEXT(D29;\"H:MM\") ein. \"H:MM\" wäre der US-Formatcode für die 12-Stunden-Darstellung für Stunden:Minuten vor oder nach 12:00 mittags, wie 13:30.\n\n"]
["SEHEN SIE SICH DAS AN\nFormeln, speziell umfangreiche, sind manchmal schwer zu lesen, aber sie können ihre Teile mit Leerzeichen aufteilen, wie hier:\n\n= C28 & \"\" & TEXT(D28;\"TT.MM.JJJJ\")"]
["EINE UNTERSUCHUNG WERT\nWenn Sie nicht wissen, welchen Formatcode Sie verwenden sollen, können Sie STRG+1 > \"Zahlen\" verwenden, um jede Zelle in der gewünschten Weise zu formatieren. Wählen Sie dann die Option \"Benutzerdefiniert\". Sie können den angezeigten Formatcode zurück in Ihre Formel kopieren."]
["Weitere Informationen im Web"]
["Alles über die TEXT-Funktion"]
["Kombinieren von Text und Zahlen"]
["Kostenlose Excel-Schulung online"]
{"$rows_empty":9}
[null,null,"Verwenden von Text und Zahlen"]
[null,null,"Heutiges Datum:",{"$f":"TODAY()","v":"2019-10-10"}]
[null,null,"Aktuelle Uhrzeit:",{"$f":"NOW()","v":43748.40007025463}]
[]
[null,null,"Verknüpfen von Text und Zahlen"]
[null,null,{"$f":"C28&\" \"&D28","v":"Heutiges Datum: 43748"}]
[null,null,{"$f":"C29&\" \"&D29","v":"Aktuelle Uhrzeit: 43748,4000702546"}]
[]
[null,null,"Formatieren von Text und Zahlen"]
[null,null,{"$f":"C28 &\" \"& TEXT(D28,\"TT.MM.JJJJ\")","v":"Heutiges Datum: 10.10.2019"}]
[null,null,{"$f":"C29&\" \"&TEXT(D29,\"H:MM\")","v":"Aktuelle Uhrzeit: 9:36"}]

{"sheet":"WENN-Anweisungen","index":7,"n_rows":37,"n_cols":6,"rows_kept":37,"merged":[[7,2,7,3]]}
["WENN-Anweisungen"]
["Mithilfe von WENN-Anweisungen können Sie logische Vergleiche zwischen Bedingungen vornehmen. Allgemein ausgedrückt bewirkt eine WENN-Anweisung, dass wenn eine Bedingung wahr ist, eine bestimmte Aktion ausgeführt wird, andernfalls wird eine andere Aktion ausgeführt. Die Formeln können Text, Werte oder sogar weitere Berechnungen zurückgeben."]
["Geben Sie in Zelle D9 \"=WENN(C9=\"Apfel\";WAHR;FALSCH)\" ein. Die richtige Antwort ist WAHR. \n"]
["Kopieren Sie D9 nach D10. Die Antwort hier sollte FALSCH sein, denn eine Orange ist kein Apfel.\n"]
["Probieren Sie ein anderes Beispiel aus, indem Sie sich die Formel in Zelle D12 ansehen. Wir haben für Sie \"=WENN(C12<100;'Kleiner als 100';'Größer als oder gleich 100')\" vorbereitet. Was geschieht, wenn Sie in Zelle C12 eine Zahl größer als 100 eingeben?\n"]
["WICHTIGES DETAIL\nWAHR und FALSCH unterscheiden sich insofern von anderen Wörtern in Excel-Formeln, als sie nicht in Anführungszeichen gesetzt werden müssen und Excel sie automatisch in Großbuchstaben schreibt. Auch Zahlen müssen nicht in Anführungszeichen stehen. Gewöhnlicher Text, wie \"Ja\" oder \"Nein\", muss in Anführungszeichen stehen, wie hier: \n=WENN(C9=\"Apfel\";\"Ja\";\"Nein\")"]
["Mehr Details erfahren"]
["Weiter",null,"WENN-Anweisungen"]
["WENN-Anweisung mit einer anderen Funktion",null,"Apfel"]
["Mit WENN-Anweisungen lässt sich auch die Ausführung zusätzlicher Berechnungen erzwingen, wenn eine bestimmte Bedingung erfüllt ist. Hier werden wir eine Zelle auswerten, um zu sehen, ob Mehrwertsteuer in Rechnung gestellt werden soll, und diese berechnen, wenn die Bedingung wahr ist.\n",null,"Orange"]
["In Zelle F33 haben wir =WENN(E33=\"Ja\";F31*Mehrwertsteuer;0) eingegeben, wobei wir \"Mehrwertsteuer\" als einen benannten Bereich mit dem Wert 0,0825 eingerichtet haben. Unsere Formel besagt, dass wenn Zelle E33 den Wert \"Ja\" aufweist, dann wird Zelle F31 mit \"Mehrwertsteuer\" multipliziert, andernfalls wird eine 0 zurückgegeben.\n\nÄndern Sie versuchsweise das \"Ja\" in Zelle E33 in Nein, um die Änderung der Berechnung zu sehen."]
["Als Nächstes haben wir eine WENN-Anweisung hinzugefügt, um ggf. die Versandkosten zu berechnen. In Zelle F35 sehen Sie =WENN(E35=\"Ja\";SUMME(D28:D29)*1,25;0). Dies bedeutet: \"Wenn Zelle E35 'Ja' ist, nimm die Summe der Spalte 'Menge' in der Tabelle oben und multipliziere sie mit 1,25; gibt andernfalls 0 zurück\".\n",null,50,{"$f":"IF(C12<100,\"Kleiner als 100\",\"Größer als oder gleich 100\")","v":"Kleiner als 100"}]
["Ändern Sie als Nächstes die 1,25 in der Formel in Zelle F35 in \"Versand\". Wenn Sie mit der Eingabe beginnen, sollte die AutoKorrekturfunktion von Excel den Eintrag für Sie finden. Wenn dies der Fall ist, drücken Sie die TAB-Taste, um den Wert einzugeben. Dies ist ein benannter Bereich, und wir haben ihn über \"Formeln\" > \"Namen definieren\" eingegeben. Wenn Sie jemals Ihre Versandkosten ändern müssen, brauchen Sie das nur an einer Stelle zu tun, und Sie können den Namen \"Versand\" überall in der Arbeitsmappe verwenden.\n\n"]
["WISSENSWERTES\nWenn Sie eine Formel erstellen, platziert Excel automatisch farbige Rahmen um alle Bereiche, auf die die Formel verweist, und die entsprechenden Bereiche in der Formel werden in der gleichen Farbe dargestellt. Sie können das sehen, wenn Sie Zelle F33 auswählen und F2 drücken, um die Formel zu bearbeiten."]
["EXPERTENTIPP\nMithilfe von benannten Bereichen können Sie Ausdrücke oder Werte an einem einzelnen Ort definieren und sie dann in der gesamten Arbeitsmappe verwenden. Sie können alle benannten Bereiche in dieser Arbeitsmappe anzeigen, indem Sie zu \"Formeln\" > \"Namens-Manager\" gehen. Klicken Sie hier, um weitere Informationen anzuzeigen.\n"]
["Zurück"]
["Weiter"]
["Weitere Informationen im Web"]
["Alles über die WENN-Funktion"]
["Alles über die WENNS-Funktion"]
["Erweiterte WENN-Anweisungen"]
["Kostenlose Excel-Schulung online"]
[]
[]
[]
[]
[null,null,"Artikel","Menge","Kosten","Gesamt"]
[null,null,"Widget",2,{"v":9.760711585683554,"d":"9.76 €"},{"$f":"'WENN-Anweisungen'!E28:E29*'WENN-Anweisungen'!$D$28:$D$29","v":{"v":19.521423171367108,"d":"19.52 €"}}]
[null,null,"Doohickey",3,{"v":3.4189202461080024,"d":"3.42 €"},{"$f":"'WENN-Anweisungen'!E28:E29*'WENN-Anweisungen'!$D$28:$D$29","v":{"v":10.256760738324008,"d":"10.26 €"}}]
[]
[{"$nulls":3},"Zwischensumme",{"$f":"SUM('WENN-Anweisungen'!$E$28:$E$29)","v":{"v":13.179631831791557,"d":"13.18 €"}},{"$f":"SUM('WENN-Anweisungen'!F28:F29)","v":{"v":29.778183909691116,"d":"29.78 €"}}]
[]
[{"$nulls":3},"Mehrwertsteuer?","Ja",{"$f":"IF(E33=\"Ja\",F31*Mehrwertsteuer,0)","v":{"v":2.456700172549517,"d":"2.46 €"}}]
[]
[{"$nulls":3},"Versand?","Ja",{"$f":"IF(E35=\"Ja\",SUM(D28:D29)*1.25,0)","v":{"v":6.25,"d":"6.25 €"}}]
[]
[{"$nulls":3},"Gesamt",null,{"$f":"SUM(F33,F31,F35)","v":{"v":38.48488408224063,"d":"38.48 €"}}]

{"sheet":"SVERWEIS","index":8,"n_rows":43,"n_cols":7,"rows_kept":43}
["SVERWEIS"]
["SVERWEIS ist eine der am häufigsten verwendeten Funktionen in Excel (und auch einer unserer Favoriten!). Mit SVERWEIS können Sie einen Wert in einer Spalte links nachschlagen und dann Informationen in einer anderen Spalte rechts zurückgeben, wenn eine Übereinstimmung gefunden wird. SVERWEIS sagt über sich:\n"]
["=SVERWEIS(A1;B:C;2;FALSCH)"]
["Wonach möchten Sie suchen?"]
["Wenn Sie es finden, wie viele Spalten nach rechts möchten Sie einen Wert abrufen?"]
["Wo möchten Sie danach suchen?"]
["Möchten Sie eine genaue oder eine ungefähre Übereinstimmung?"]
["Geben Sie in Zelle D22 \"=SVERWEIS(C22;C17:D20;2;FALSCH)\" ein. Die richtige Antwort für \"Äpfel\" ist 50. SVERWEIS hat nach \"Äpfel\" gesucht, den Wert gefunden, wechselte dann eine Spalte nach rechts und gab den Betrag zurück.\n\n"]
["Versuchen Sie es jetzt selbst im Abschnitt \"Fleischwaren\" in Zelle G22. Sie sollten beim Ergebnis \"=SVERWEIS(F22;F17:G20;2;FALSCH)\" landen.\n\n"]
["EINFACH AUSPROBIEREN\nVersuchen Sie, in den Dropdownlisten verschiedene Elemente auszuwählen. Sie sehen, dass sich die Ergebniszellen sofort mit neuen Werten aktualisieren."]
["Tiefer einsteigen und mehr Details erfahren"]
["Weiter"]
["SVERWEIS und #NV"]
["Unweigerlich werden Sie der Situation begegnen, dass SVERWEIS nicht finden kann, was Sie suchen, und einen Fehler (#NV) zurückgibt. Manchmal liegt das daran, dass es den Nachschlagewert einfach nicht gibt, oder es hat den Grund, dass die Bezugszelle noch keinen Wert hat.\n"]
["Wenn Sie wissen, dass Ihr Nachschlagewert vorhanden ist, Sie aber den Fehler bei leerer Nachschlagezelle ausblenden möchten, können Sie eine WENN-Anweisung verwenden. In diesem Fall verpacken wir Ihre vorhandene SVERWEIS-Formel in Zelle D43 in dieser Weise:\n\n=WENN(C43=\"\";\"\";SVERWEIS(C43;C37:D41;2;FALSCH))\n\nDas bedeutet: Wenn Zelle C43 keinen Wert aufweist (\"\"), nichts zurückgeben, andernfalls das Ergebnis von SVERWEIS zurückgeben. Beachten Sie die zweite schließende Klammer am Ende der Formel. Diese schließt die WENN-Anweisung.\n"]
["Wenn Sie nicht sicher sind, ob Ihr Nachschlagewert vorhanden ist, die Anzeige des NV-Fehlers aber trotzdem unterdrücken möchten, können Sie in Zelle G43 eine Fehlerbehandlungsfunktion mit dem Namen WENNFEHLER verwenden: =WENNFEHLER(SVERWEIS(F43;F37:G41;2;FALSCH),\"\"). WENNFEHLER besagt, wenn SVERWEIS ein gültiges Ergebnis zurückgibt, wird dieses angezeigt, andernfalls nichts (\"\"). Wir zeigen hier nichts (\"\") an, aber Sie können auch Zahlen (0,1, 2 usw.) oder Text wie \"Die Formel ist nicht korrekt\" verwenden.\n",null,"Obst","Betrag",null,"Fleischwaren","Betrag"]
["WICHTIGES DETAIL\nWENNFEHLER ist das, was als ein allgemeiner Fehlerhandler bezeichnet wird, d.h., er unterdrückt jeden Fehler, den Ihre Formel eventuell ausgibt. Dies kann zu Problemen führen, wenn Excel Ihnen eine Benachrichtigung geben möchte, dass Ihre Formel einen wirklichen Fehler enthält, der behoben werden muss.\n\nDaher lautet die Faustregel, Ihren Formeln keine Fehlerhandler hinzuzufügen, wenn Sie nicht absolut sicher sind, dass sie ordnungsgemäß arbeiten.",null,"Äpfel",50,null,"Rindfleisch",50]
["Zurück",null,"Orangen",20,null,"Huhn",30]
["Weiter",null,"Bananen",60,null,"Schwein",10]
["Weitere Informationen im Web",null,"Zitronen",40,null,"Fisch",50]
["Alles über die SVERWEIS-Funktion"]
["Alles über die INDEX/VERGLEICH-Funktionen",null,"Äpfel",null,null,"Schwein"]
["Alles über die WENNFEHLER-Funktion"]
["Verwenden von PivotTables zum Analysieren von Arbeitsblattdaten"]
["Kostenlose Excel-Schulung online"]
{"$rows_empty":9}
[null,null,"Wenn die Funktion SUMME in Zelle D42 sprechen könnte, würde sie wohl Folgendes sagen: Addiere die Werte in den Zellen D38, D39, D40 und D41."]
[null,null,"Artikel","Betrag",null,"Artikel","Betrag"]
[null,null,"Brot",50,null,"Brot",50]
[null,null,"Donuts",100,null,"Donuts",100]
[null,null,"Kekse",40,null,"Kekse",40]
[null,null,"Kuchen",50,null,"Kuchen",50]
[null,null,"Torten",20,null,"Torten",20]
[]
[{"$nulls":3},{"$f":"VLOOKUP(C43,C37:D41,2,FALSE)","v":{"$error":"#N/A"}},null,"Feingebäck",{"$f":"IFERROR(VLOOKUP(F43,F37:G41,2,FALSE),\"\")","v":""}]

{"sheet":"Bedingte Funktionen","index":9,"n_rows":123,"n_cols":34,"rows_kept":123}
["Bedingte Funktionen – SUMMEWENN"]
["Mithilfe von bedingten Funktionen können Sie die Summe, den Mittelwert, die Anzahl sowie Minimum oder Maximum eines Bereichs auf der Grundlage einer bestimmten Bedingung oder eines von Ihnen festgelegten Kriteriums bestimmen. In dem Sinne: Von allen Früchten in der Liste sind wie viele Äpfel? Oder wie viele Orangen sind vom Floridatyp?",null,"Obst","Betrag",null,"Obst","Typ","Betrag",{"$nulls":17},"Obst",null,"Äpfel",null,"Orangen",null,"Bananen",null,"Zitronen"]
["Mit SUMMEWENN können Sie Werte in einem Bereich auf der Grundlage eines spezifischen Kriteriums addieren, das Sie in einem anderen Bereich suchen, etwa der Anzahl der Äpfel. Wählen Sie Zelle D17 aus, und geben Sie \"=SUMMEWENN(C3:C14;C17;D3:D14)\" ein. SUMMEWENN ist wie folgt strukturiert:",null,"Äpfel",50,null,"Äpfel","Fuji",50,{"$nulls":17},"Äpfel",null,"Fuji",null,"Florida",null,"Cavendish",null,"Rough"]
["=SUMMEWENN(C3:C14;C17;D3:D4)",null,"Orangen",20,null,"Orangen","Florida",20,{"$nulls":17},"Orangen",null,"Honeycrisp",null,"Navel",null,"Lady Finger",null,"Eureka"]
["Welchen Bereich möchten Sie sich ansehen?",null,"Bananen",60,null,"Bananen","Cavendish",60,{"$nulls":17},"Bananen"]
["Welchen Wert (Text oder Zahl) möchten Sie suchen?",null,"Zitronen",40,null,"Zitronen","Rough",40,{"$nulls":17},"Zitronen"]
["Für jede gefundene Übereinstimmung: In welchem Bereich möchten Sie addieren?",null,"Äpfel",50,null,"Äpfel","Honeycrisp",50]
["SUMMEWENNS ist das Gleiche wie SUMMEWENN, erlaubt aber die Verwendung mehrerer Kriterien. Daher können Sie in diesem Beispiel nach \"Obst\" und \"Typ\" anstatt nur nach \"Obst\" suchen. Wählen Sie Zelle H17 aus, und geben Sie \"=SUMMEWENNS(H3:H14;F3:F14;F17;G3:G14;G17)\" ein. SUMMEWENNS ist wie folgt strukturiert:\n",null,"Orangen",20,null,"Orangen","Navel",20]
["=SUMMEWENN(H3:H14;F3:F14;F17;G3:G14;G17)",null,"Bananen",60,null,"Bananen","Lady Finger",60]
["Welchen Bereich möchten Sie addieren?",null,"Zitronen",40,null,"Zitronen","Eureka",40]
["Dies ist der erste Bereich, in dem nach Übereinstimmungen gesucht wird",null,"Äpfel",50,null,"Äpfel","Honeycrisp",50]
["Dies ist das Kriterium für die erste Übereinstimmung",null,"Orangen",20,null,"Orangen","Navel",20]
["Dies ist der zweite Bereich, in dem nach Übereinstimmungen gesucht wird",null,"Bananen",60,null,"Bananen","Cavendish",60]
["Dies ist das Kriterium für die zweite Übereinstimmung",null,"Zitronen",40,null,"Zitronen","Eureka",40]
["EXPERTENTIPP\nJede der Zellen für Obst und Typ verfügt über eine Dropdownliste, in der Sie verschiedene Obstsorten auswählen können. Probieren Sie es aus, und beobachten Sie, wie die Formeln automatisch aktualisiert werden."]
["Tiefer einsteigen und mehr Details erfahren",null,"Obst","SUMMEWENN",null,"Obst","Typ","SUMMEWENNS"]
["Nächster Schritt",null,"Äpfel",null,null,"Orangen","Florida"]
["Bedingte Funktionen – ZÄHLENWENN"]
["Mithilfe von ZÄHLENWENN und ZÄHLENWENNS können Sie Werte in einem Bereich anhand von Kriterien zählen, die Sie festlegen. Sie unterscheiden sich ein bisschen von den anderen WENN- und WENNS-Funktionen, insofern sie nur einen Kriterienbereich und Kriterien aufweisen. Sie werten nicht einen Bereich aus und suchen dann in einem anderen, um zusammenzufassen."]
["Wählen Sie Zelle D64 aus, und geben Sie \"=ZÄHLENWENN(C50:C61;C64)\" ein. ZÄHLENWENN ist wie folgt strukturiert:"]
["=ZÄHLENWENN(C50:C61;C64)"]
["Welchen Bereich möchten Sie sich ansehen?"]
["Welchen Wert (Text oder Zahl) möchten Sie suchen?"]
["ZÄHLENWENNS ist das Gleiche wie ZÄHLENWENN, erlaubt aber die Verwendung mehrerer Kriterien. Daher können Sie in diesem Beispiel nach \"Obst\" und \"Typ\" anstatt nur nach \"Obst\" suchen. Wählen Sie Zelle H64 aus, und geben Sie \"=ZÄHLENWENNS(F50:F61;F64;G50:G61;G64)\" ein. ZÄHLENWENNS ist wie folgt strukturiert:\n"]
["=ZÄHLENWENNS(F50:F61;F64;G50:G61;G64)"]
["Dies ist der erste zu zählende Bereich"]
["Dies ist das Kriterium für die erste Übereinstimmung"]
["Dies ist der zweite zu zählende Bereich"]
["Dies ist das Kriterium für die zweite Übereinstimmung"]
["Tiefer einsteigen und mehr Details erfahren"]
["Weiter"]
["Mehr bedingte Funktionen"]
["Sie haben SUMMEWENN, SUMMEWENNS, ZÄHLENWENN und ZÄHLENWENNS bereits kennengelernt. Jetzt können Sie sich auf eigene Faust an den anderen Funktionen versuchen, wie MITTELWERTWENN/S, MAXWENNS, MINWENNS. Sie sind alle gleich strukturiert, daher können Sie, sobald Sie eine Formel geschrieben haben, einfach den Funktionsnamen durch den Namen der gewünschten Funktion ersetzen. Wir haben alle Formeln ausgeschrieben, die Sie für Zelle E106 benötigen, daher können Sie diese kopieren und dort einfügen oder versuchen, Sie übungshalber selbst einzugeben.\n\nSUMMEWENN \t=SUMMEWENN(C92:C103;C106;E92:E103) \nSUMMEWENNS \t=SUMMEWENNS(E92:E103;C92:C103;C106;D92:D103;D106) \nMITTELWERTWENN \t=MITTELWERTWENN(C92:C103;C106;E92:E103) \nMITTELWERTWENNS\t=MITTELWERTWENNS(E92:E103;C92:C103;C106;D92:D103;D106)\nZÄHLENWENN \t=ZÄHLENWENN(C92:C103;C106)\nZÄHLENWENNS \t=ZÄHLENWENNS(C92:C103;C106;D92:D103;D106) \nMAXWENNS \t=MAXWENNS(E92:E103;C92:C103;C106;D92:D103;D106)\nMINWENNS \t=MINWENNS(E92:E103;C92:C103;C106;D92:D103;D106)\n"]
["Tiefer einsteigen und mehr Details erfahren"]
["Weiter"]
["SUMMEWENN mit einem Wertargument"]
["Hier ist ein Beispiel der Funktion SUMMEWENN, das \"größer als\" (>) verwendet, um alle Werte zu finden, die größer als ein angegebener Betrag sind:"]
[{"$f":"SUMIF(D118:D122,\">=50\")","v":200}]
["Werte auf der Grundlage dieses Kriteriums addieren:"]
["...Diese Zellen durchsuchen...\n "]
["...und wenn der Wert größer ist als 50, addieren.\n "]
["ANMERKUNG: Wenn Sie feststellen, dass Sie viele bedingte Formeln erstellen, kann sich eine PivotTable als bessere Lösung erweisen. Weitere Informationen finden Sie in diesem PivotTable-Artikel."]
["Weitere Informationen im Web"]
["Alles über die SUMMEWENN-Funktion"]
["Alles über die SUMMEWENNS-Funktion"]
["Alles über die ZÄHLENWENN-Funktion"]
["Alles über die ZÄHLENWENNS-Funktion"]
["Alles über die MITTELWERTWENN-Funktion"]
["Alles über die MITTELWERTWENNS-Funktion",null,"Obst","Betrag",null,"Obst","Typ","Betrag"]
["Alles über die MINWENNS-Funktion",null,"Äpfel",50,null,"Äpfel","Fuji",50]
["Alles über die MAXWENNS-Funktion",null,"Orangen",20,null,"Orangen","Florida",20]
["Erstellen einer Dropdownliste",null,"Bananen",60,null,"Bananen","Cavendish",60]
["Kostenlose Excel-Schulung online",null,"Zitronen",40,null,"Zitronen","Rough",40]
["Zurück zum Anfang",null,"Äpfel",50,null,"Äpfel","Honeycrisp",50]
["Weiter",null,"Orangen",20,null,"Orangen","Navel",20]
[null,null,"Bananen",60,null,"Bananen","Lady Finger",60]
[null,null,"Zitronen",40,null,"Zitronen","Eureka",40]
[null,null,"Äpfel",50,null,"Äpfel","Honeycrisp",50]
[null,null,"Orangen",20,null,"Orangen","Navel",20]
[null,null,"Bananen",60,null,"Bananen","Cavendish",60]
[null,null,"Zitronen",40,null,"Zitronen","Eureka",40]
[]
[null,null,"Obst","ZÄHLENWENN",null,"Obst","Typ","ZÄHLENWENNS"]
[null,null,"Äpfel",{"$f":"COUNTIF(C50:C61,C64)","v":3},null,"Orangen","Florida",{"$f":"COUNTIFS(F50:F61,F64,G50:G61,G64)","v":1}]
{"$rows_empty":26}
[null,null,"Obst","Typ","Betrag"]
[null,null,"Äpfel","Fuji",50]
[null,null,"Orangen","Florida",20]
[null,null,"Bananen","Cavendish",60]
[null,null,"Zitronen","Rough",40]
[null,null,"Äpfel","Honeycrisp",50]
[null,null,"Orangen","Navel",20]
[null,null,"Bananen","Lady Finger",60]
[null,null,"Zitronen","Eureka",40]
[null,null,"Äpfel","Honeycrisp",50]
[null,null,"Orangen","Navel",20]
[null,null,"Bananen","Cavendish",60]
[null,null,"Zitronen","Eureka",40]
[]
[null,null,"Obst","Typ","Probieren Sie es aus"]
[null,null,"Zitronen","Eureka",{"$f":"AVERAGEIFS(E92:E103,C92:C103,C106,D92:D103,D106)","v":40}]
{"$rows_empty":10}
[null,null,"Artikel","Betrag"]
[null,null,"Brot",50]
[null,null,"Donuts",100]
[null,null,"Kekse",40]
[null,null,"Kuchen",50]
[null,null,"Torten",20]
[{"$nulls":3},{"$f":"SUMIF(D118:D122,\">=50\")","v":200}]

{"sheet":"Funktions-Assistent","index":10,"n_rows":14,"n_cols":4,"rows_kept":14}
["Lassen Sie sich vom Funktions-Assistenten führen"]
["Wenn Sie den Namen der Funktion kennen, die Sie verwenden möchten, aber nicht sicher sind, wie sie erstellt wird, können Sie den Funktions-Assistenten zur Unterstützung verwenden.\n"]
["Wählen Sie Zelle D10 aus, wechseln Sie dann zu \"Formeln\" > \"Funktion einfügen\" > geben Sie SVERWEIS in das Feld \"Funktion suchen\" ein, und klicken Sie auf \"OK\". Wenn SVERWEIS hervorgehoben angezeigt wird, klicken Sie unten auf \"OK\". Wenn Sie eine Funktion in der Liste auswählen, zeigt Excel ihre Syntax an.\n"]
["Geben Sie als Nächstes die Funktionsargumente in ihre entsprechenden Textfelder ein. Excel überprüft die einzelnen Argumente, während Sie sie eingeben, und zeigt das Ergebnis an, mit dem Endergebnis am unteren Rand. Beim Eintritt in die einzelnen Abschnitte werden die Kriterien für jedes der Argumente unten im Formular aufgelistet. Klicken Sie auf \"OK\", wenn Sie fertig sind, dann gibt Excel die Formel für Sie ein.\n\n\n",null,"Obst","Betrag"]
["SEHEN SIE SICH DAS AN\nSie sollten beim Ergebnis =SVERWEIS(C10;C5:D8;2;FALSCH) landen.",null,"Äpfel",50]
["WISSENSWERTES\nSie können Zell- und Bereichsbezüge eingeben oder sie mit der Maus auswählen.",null,"Orangen",20]
["WISSENSWERTES\nBeim Eintritt in den Abschnitt der einzelnen Argumente wird die Beschreibung des jeweiligen Arguments am unteren Rand des Formulars angezeigt, oberhalb des Formelergebnisses.\n",null,"Bananen",60]
["Zurück",null,"Zitronen",40]
["Weiter"]
["Weitere Informationen im Web",null,"Äpfel",{"$f":"VLOOKUP(C10,C5:D8,2,FALSE)","v":50}]
["Übersicht über Formeln in Excel"]
["Excel-Funktionen (nach Kategorie)"]
["Excel-Funktionen (alphabetisch)"]
["Kostenlose Excel-Schulung online"]

{"sheet":"Formelfehler","index":11,"n_rows":36,"n_cols":4,"rows_kept":36}
["Beheben von Formelfehlern"]
["An irgendeinem Punkt wird Ihnen eine Formel unterkommen, die einen Fehler aufweist, was Excel als \"#Fehlername\" anzeigt. Fehler können nützlich sein, weil sie darauf hinweisen, dass etwas nicht richtig funktioniert, aber ihre Behebung kann zur Herausforderung werden. Glücklicherweise gibt es eine Reihe von Optionen, die Ihnen helfen, die Quelle des Fehlers dingfest zu machen und ihn zu beheben.\n"]
["Fehlerüberprüfung – Gehen Sie zu \"Formeln\" > \"Fehlerüberprüfung\". Dadurch wird ein Dialogfeld geladen, das Ihnen die allgemeine Ursache Ihres spezifischen Fehlers mitteilt. In Zelle D9 wird der Fehler \"#NV\" dadurch verursacht, dass es keinen Wert gibt, der mit \"Apfel\" übereinstimmt. Sie können dies beheben, indem Sie einen vorhandenen Wert verwenden, den Fehler mithilfe von WENNFEHLER unterdrücken oder ihn ignorieren, weil sie wissen, dass er verschwindet, wenn Sie einen vorhandenen Wert verwenden.\n",null,"Obst","Betrag"]
["Wenn Sie auf \"Hilfe für diesen Fehler\" klicken, wird ein für die Fehlermeldung spezifisches Hilfethema angezeigt. Wenn Sie auf \"Berechnungsschritte anzeigen\" klicken, wird ein Dialogfeld \"Formel auswerten\" angezeigt.\n",null,"Äpfel",50]
["Bei jedem Klicken auf \"Auswerten\" führt Excel abschnittsweise einen Schritt der Formel aus. Dadurch erhalten Sie nicht zwangsläufig Informationen dazu, warum ein Fehler aufritt, aber Sie sehen, an welcher Stelle er auftritt. Sehen Sie sich an diesem Punkt das Hilfethema an, um abzuleiten, was mit Ihrer Formel schief gelaufen ist.\n",null,"Orangen",20]
["EINFACH AUSPROBIEREN\nWas ist hier falsch? Hinweis: Wir versuchen, die SUMME über alle Artikel zu ziehen.",null,"Bananen",60]
["WISSENSWERTES\nDurch Klicken auf \"Optionen\" können Sie Regeln festlegen, wann Fehler in Excel angezeigt oder ignoriert werden.\n",null,"Zitronen",40]
["Zurück"]
["Weiter",null,"Apfel",{"$f":"VLOOKUP(C9,C3:D7,2,FALSE)","v":{"$error":"#N/A"}}]
["Weitere Informationen im Web"]
["Fehler in Formeln ermitteln"]
["Vermeiden defekter Formeln"]
["Schrittweises Auswerten von verschachtelten Formeln"]
["Kostenlose Excel-Schulung online"]
{"$rows_empty":15}
[null,null,"Obst","Betrag"]
[null,null,"Äpfel",50]
[null,null,"Orangen",20]
[null,null,"Bananen",60]
[null,null,"Zitronen",40]
[]
[null,null,"Gesamt",{"$f":"sume(D31:D34)","v":{"$error":"#NAME?"}}]

{"sheet":"Weitere Informationen","index":12,"n_rows":6,"n_cols":1,"rows_kept":6}
["Weitere Fragen zu Excel?"]
["Drücken Sie ALT+M, und geben Sie ein, was Sie wissen möchten"]
["Machen Sie weiter. Es gibt noch mehr über Excel zu lernen:"]
["LinkedIn Learning: Video-Kurse für alle Stufen – vom Anfänger bis zum Fortgeschrittenen. Für das Selbststudium.\n"]
["Community: Stellen Sie Fragen, und setzen Sie sich mit anderen Excel-Fans in Verbindung.\n"]
["Sonstige Neuigkeiten\nOffice 365-Abonnenten erhalten fortlaufend Updates und neue Features.\n\n"]